Cogmind - Beta 14 @@@ ROGUE MODE // 2025.03.14 @ 20:23:27 Player: canerib Result: Self-destructed Performance ------------- Evolutions (2) 1000 Regions Visited (4) 800 Robots Destroyed (31) 155 Value Destroyed (709) 709 Prototype IDs (1) 20 Alien Tech Used (0) 0 Bonus (355) 355 TOTAL SCORE: 3039 Bonus ------- Follower Combat Kills 360 Friendly Fire -5 Cogmind --------- Core Integrity 532/550 Matter 232/300 Energy 142/240 System Corruption 0% Temperature Critical (553) Movement Walking (120) Location -8/Materials Parts ------- > --- POWER (1) -------- Nuclear Core > --- PROPULSION (4) --- Improved Aluminum Leg Improved Aluminum Leg Improved Aluminum Leg Improved Aluminum Leg > --- UTILITY (3) ------ Small Storage Unit Improved Terrain Scanner Improved Terrain Scan Processor > --- WEAPON (3) ------- (None) > --- INVENTORY (8) ---- Improved Aluminum Leg Improved Aluminum Leg Heat Sink Signal Interpreter Hardened Light Armor Plating System Shield Small Laser Rocket Launcher Peak State ------------ > --- POWER ------------ Cooled Ion Engine > --- PROPULSION ------- Improved Aluminum Leg Improved Aluminum Leg Improved Aluminum Leg Improved Aluminum Leg > --- UTILITY ---------- Small Storage Unit Improved Terrain Scanner Improved Terrain Scan Processor > --- WEAPON ----------- Spread Laser Spread Laser Mining Laser > --- INVENTORY -------- Improved Aluminum Leg Improved Aluminum Leg Heat Sink Signal Interpreter Hardened Light Armor Plating System Shield Rocket Launcher [Rating: 24] Favorites ----------- Power Cooled Ion Engine Engine Cooled Ion Engine Power Core Nuclear Core Propulsion Improved Aluminum Leg Leg Improved Aluminum Leg Utility Small Storage Unit Device Improved Terrain Scanner Storage Small Storage Unit Processor Improved Terrain Scan Processor Protection Light Armor Plating Weapon Spread Laser Energy Gun Spread Laser Ballistic Gun Light Assault Rifle Special Weapon Mining Laser Build | -11 -10 -9 -9 -8 ------- Run | Yrd Mat Mat Sto Mat Slots Evolved 4 | . . 2 . 2 Power . | . . . . . Propulsion 2 | . . 1 . 1 Utility 1 | . . 1 . . Weapon 1 | . . . . 1 Parts Attached 32 | 7 1 6 14 4 Power 4 | 1 1 . 1 1 Engine 3 | 1 1 . 1 . Core 1 | . . . . 1 Reactor . | . . . . . Propulsion 10 | 2 . 2 5 1 Treads . | . . . . . Leg 10 | 2 . 2 5 1 Wheel . | . . . . . Hover . | . . . . . Flight . | . . . . . Utility 7 | 2 . 2 2 1 Device 3 | 1 . . 2 . Storage 1 | 1 . . . . Processor 1 | . . . . 1 Hackware . | . . . . . Protection 2 | . . 2 . . Artifact . | . . . . . Weapon 11 | 2 . 2 6 1 Energy Gun 5 | . . 2 3 . Energy Cannon . | . . . . . Ballistic Gun 2 | 2 . . . . Ballistic Cannon . | . . . . . Launcher . | . . . . . Special Weapon 4 | . . . 3 1 Impact Weapon . | . . . . . Slashing Weapon . | . . . . . Piercing Weapon . | . . . . . Special Melee Weapon . | . . . . . Unidentified Prototypes 1 | . . . 1 . Parts Lost 5 | . . . 2 3 Power 1 | . . . 1 . Propulsion . | . . . . . Utility 1 | . . . 1 . Weapon 3 | . . . . 3 Highest Loss Streak 3 | . . . 1 3 To Critical Strikes . | . . . . . Average Slot Usage (%) 98 | . 100 100 99 93 Engine 10 | . 14 11 11 7 Leg 32 | . 28 33 33 36 Device 16 | . 14 11 19 11 Storage 11 | . 14 11 11 9 Protection 3 | . . 11 1 . Energy Gun 16 | . . 19 19 18 Ballistic Gun 4 | . 28 2 . . Special Weapon 1 | . . . 2 3 Peak Build Rating 24 | 9 9 14 19 24 Average Rating 15 | 6 9 12 17 22 On Entrance 10 | . 9 9 14 19 Naked Turns . | . . . . . Heaviest Build 27 | 11 13 24 27 21 Greatest Support 52 | 20 20 30 39 52 Greatest Overweight (x) 1 | 1 . . . . Average Overweight (x) . | . . . . . Largest Inventory Capacity 8 | 8 8 8 8 8 Average Capacity 7 | 7 8 8 8 8 Most Carried 8 | 3 8 8 8 8 Average Carried 6 | 2 5 6 7 7 Final Capacity 8 | 8 8 8 8 8 Final Carried 8 | 3 8 8 8 8 Class Distribution -------------------- 65% | Mutant 31% | Commander-Mutant 3% | Skirmisher Dominant Class ---------------- Mutant | -10/Materials Mutant | -9/Materials Commander-Mutant | -9/Storage Commander-Mutant | -8/Materials Resources | -11 -10 -9 -9 -8 ----------- Run | Yrd Mat Mat Sto Mat Matter Collected 613 | 314 22 60 201 16 Remotely . | . . . . . Salvage Created 752 | 135 32 146 292 147 Parts 61 | 13 5 8 28 7 Haulers Intercepted 4 | . . 2 2 . Recyclers Shooed 1 | 1 . . . . Parts Field Recycled . | . . . . . Retrieved Matter . | . . . . . Parts Self-Destructed . | . . . . . Prevented . | . . . . . Kills | -11 -10 -9 -9 -8 ------- Run | Yrd Mat Mat Sto Mat Combat Hostiles Destroyed 19 | . 1 2 13 3 Guns 19 | . 1 2 13 3 Classes Destroyed 9 | 2 1 3 1 2 Tunneler 4 | 4 . . . . Hauler 4 | . . 2 2 . Recycler 1 | 1 . . . . Operator 2 | . . 1 1 . Watcher 1 | . . . . 1 Swarmer 7 | . . . 7 . Grunt 7 | . 1 . 5 1 Sentry 3 | . . 2 1 . Specialist 2 | . . . . 2 Best Kill Streak 6 | 3 1 1 6 4 Combat Bots Only 5 | . 1 1 5 3 Max Kills in Single Turn 1 | 1 1 1 1 1 Gunslinging . | . . . . . Exploded . | . . . . . Melee . | . . . . . Uniques/NPCs Destroyed . | . . . . . Combat | -11 -10 -9 -9 -8 -------- Run | Yrd Mat Mat Sto Mat Hostile Shots Fired 99 | . 3 18 65 13 Missed 24 | . 2 5 17 . Damage Taken 941 | . 10 145 495 291 Core 146 | . . . 128 18 Absorbed by Shields . | . . . . . Regen/Repaired (Parts) 20 | . . . 20 . Core Remaining (%) 89 | 100 100 . 68 . Volleys Fired 93 | 22 6 15 32 18 Largest 2 | 2 2 2 2 2 Hottest 130 | 40 40 130 130 130 Shots Fired 176 | 44 12 30 60 30 Gun 166 | 44 12 30 56 24 Cannon . | . . . . . Launcher . | . . . . . Special 10 | . . . 4 6 Kinetic 56 | 44 12 . . . Thermal 120 | . . 30 60 30 Explosive . | . . . . . Electromagnetic . | . . . . . Robot Hit Streak 15 | 10 6 15 8 7 Robot Miss Streak 14 | 2 3 14 11 10 Penetration Max . | . . . . . Secondary Targets 4 | . . . 3 1 Max Gunslinging Chain 1 | . . . 1 1 Shots Hit Robots 130 | 31 5 24 48 22 Core Hits 125 | 10 3 26 59 27 Critical Kills . | . . . . . Critical Parts Destroyed . | . . . . . Critical Strikes . | . . . . . Melee Attacks . | . . . . . Impact . | . . . . . Slashing . | . . . . . Piercing . | . . . . . Sneak Attacks . | . . . . . Combat Hostiles . | . . . . . Follow-up Attacks . | . . . . . Damage Inflicted 1570 | 246 42 374 640 268 Guns 1570 | 246 42 374 640 268 Cannons . | . . . . . Explosions . | . . . . . Melee . | . . . . . Ramming . | . . . . . Kinetic 288 | 246 42 . . . Thermal 1282 | . . 374 640 268 Explosive . | . . . . . Electromagnetic . | . . . . . Impact . | . . . . . Slashing . | . . . . . Piercing . | . . . . . Highest Corruption . | . . . . . Average Corruption . | . . . . . Corruption Purged . | . . . . . Corruption Blocked . | . . . . . Overload Shots . | . . . . . Overflow Damage . | . . . . . Projectiles . | . . . . . Explosions . | . . . . . Melee . | . . . . . Knockbacks . | . . . . . Impact . | . . . . . Kinetic . | . . . . . Secondary . | . . . . . Self-Inflicted Damage . | . . . . . Shots . | . . . . . Rammed . | . . . . . Targets Rammed . | . . . . . Kicked . | . . . . . Crushed . | . . . . . Highest Temperature 580 | . . 225 515 580 Average Temperature 142 | . . 81 147 274 Received Heat Transfer 192 | . 6 27 105 54 Effects 13 | . . . 5 8 Shutdowns 1 | . . . . 1 Energy Bleed 4 | . . . 2 2 Matter Decay 2 | . . . 1 1 Damage (minor) 1 | . . . 1 . Damage (major) 4 | . . . . 4 Damage (core) 1 | . . . 1 . Siege Activations . | . . . . . Robots Corrupted . | . . . . . Combat Hostiles . | . . . . . Parts Fried . | . . . . . Impact Corruptions . | . . . . . Robots Melted . | . . . . . Combat Hostiles . | . . . . . Parts Melted . | . . . . . Heat Transferred 1575 | . . 455 790 330 Parts Sabotaged . | . . . . . Parts Stolen . | . . . . . Parts Stripped . | . . . . . Power Chain Reactions . | . . . . . Alert | -11 -10 -9 -9 -8 ------- Run | Yrd Mat Mat Sto Mat Peak Influence 407 | 25 81 162 407 236 Initial 115 | . 16 33 68 115 Average 133 | 9 38 93 194 135 Maximum Alert Level 2 | . . . 2 1 Low Security (%) 74 | 100 100 100 52 83 Level 1 21 | . . . 40 16 Level 2 3 | . . . 6 . Level 3 . | . . . . . Level 4 . | . . . . . Level 5 . | . . . . . High Security . | . . . . . Max Security . | . . . . . Squads Dispatched 9 | . 1 . 5 3 Investigation . | . . . . . Extermination . | . . . . . Reinforcement 5 | . 1 . 1 3 Assault 2 | . . . 2 . Garrison 2 | . . . 2 . Intercept . | . . . . . Searches Triggered . | . . . . . Construction Impeded . | . . . . . Haulers Reinforced . | . . . . . Active Scanning Responses . | . . . . . Cargo Convoy Interrupts . | . . . . . Stealth | -11 -10 -9 -9 -8 --------- Run | Yrd Mat Mat Sto Mat Distress Signals 6 | . 1 . 3 2 Communications Jammed . | . . . . . Distress Signals . | . . . . . Times Spotted 51 | . 6 12 25 8 Peak Tracking Total 6 | . 3 4 6 4 Tactical Retreats . | . . . . . Traps | -11 -10 -9 -9 -8 ------- Run | Yrd Mat Mat Sto Mat Traps Triggered . | . . . . . Indirectly . | . . . . . Trap Hack Attempts . | . . . . . Triggered . | . . . . . Disarmed . | . . . . . Reprogrammed . | . . . . . Reused . | . . . . . Traps Extracted . | . . . . . Installed . | . . . . . Triggered . | . . . . . Machines | -11 -10 -9 -9 -8 ---------- Run | Yrd Mat Mat Sto Mat Machines Disabled 3 | . . . 3 . Max in Single Turn 1 | . . . 1 . Machines Repaired . | . . . . . Machines Dismantled . | . . . . . Machines Sabotaged . | . . . . . Overloaded Fab Kills . | . . . . . Hacking | -11 -10 -9 -9 -8 --------- Run | Yrd Mat Mat Sto Mat Machines Accessed 17 | . . 6 11 . Terminals 14 | . . 5 9 . Fabricators . | . . . . . Repair Stations 2 | . . 1 1 . Recycling Units . | . . . . . Scanalyzers . | . . . . . Garrison Access 1 | . . . 1 . Total Hacks 41 | . . 16 25 . Successful 19 | . . 5 14 . Failed 22 | . . 11 11 . Catastrophic 5 | . . 3 2 . Database Lockouts . | . . . . . Manual 13 | . . 5 8 . Terminals 36 | . . 15 21 . Fabricators . | . . . . . Repair Stations 3 | . . 1 2 . Recycling Units . | . . . . . Scanalyzers . | . . . . . Garrison Access 2 | . . . 2 . Terminal Hacks 15 | . . 4 11 . Robot Analysis 2 | . . 1 1 . Open Door 5 | . . . 5 . Branch Access Points 1 | . . 1 . . Terminal Index 1 | . . 1 . . Alert Level 2 | . . 1 1 . Unreport Threat 1 | . . . 1 . Locate Traps 1 | . . . 1 . Security Status 1 | . . . 1 . Zone Layout 1 | . . . 1 . Fabricator Hacks . | . . . . . Repair Station Hacks 2 | . . . 2 . Scan Component 1 | . . . 1 . Repair 1 | . . . 1 . Recycling Unit Hacks . | . . . . . Scanalyzer . | . . . . . Garrison Access Hacks . | . . . . . Unauthorized Hacks 2 | . . 1 1 . Terminals 2 | . . 1 1 . Assimilate 1 | . . 1 . . Botnet 1 | . . . 1 . Fabricators . | . . . . . Repair Stations . | . . . . . Recycling Units . | . . . . . Scanalyzers . | . . . . . Garrison Access . | . . . . . Data Cores Recovered 1 | . . 1 . . Used 1 | . . 1 . . Hacking Detections 13 | . . 6 7 . Full Trace Events 1 | . . . 1 . Feedback Events . | . . . . . Feedback Blocked . | . . . . . Robot Schematics Acquired . | . . . . . Robots Built . | . . . . . Authchips . | . . . . . Time . | . . . . . Total Robot Build Rating . | . . . . . Part Schematics Acquired . | . . . . . Parts Built . | . . . . . Authchips . | . . . . . Time . | . . . . . Total Part Build Rating . | . . . . . Parts Repaired 1 | . . . 1 . Time 38 | . . . 38 . Parts Recycled . | . . . . . Recycled Matter . | . . . . . Retrieved Matter . | . . . . . Retrieved Components . | . . . . . Parts Scanalyzed . | . . . . . Part Schematics Acquired . | . . . . . Parts Damaged . | . . . . . Bothacking | -11 -10 -9 -9 -8 ------------ Run | Yrd Mat Mat Sto Mat Used RIF Installer . | . . . . . Robots Hacked . | . . . . . Non-combat . | . . . . . Combat . | . . . . . Robot Hacks Applied . | . . . . . Relay Couplers Released . | . . . . . Fabnet Peak Effective % . | . . . . . Robots Rewired . | . . . . . Allies Hacked . | . . . . . Hacks Repelled . | . . . . . Allies | -11 -10 -9 -9 -8 -------- Run | Yrd Mat Mat Sto Mat Total Allies 13 | . . 1 12 . Largest Group 11 | . . 1 11 9 Highest-Rated Group 126 | . . 10 126 126 Highest-Rated Ally 31 | . . 10 31 31 Total Orders . | . . . . . Ally Attacks 96 | . . . 60 36 Total Damage 1043 | . . . 566 477 Kills 13 | . . . 8 5 Allies Corrupted . | . . . . . Allies Melted . | . . . . . Intel | -11 -10 -9 -9 -8 ------- Run | Yrd Mat Mat Sto Mat Robot Analysis Total 2 | . . 1 1 . Derelict Logs Recovered . | . . . . . Drone Launches . | . . . . . Drone Recoveries . | . . . . . Exploration | -11 -10 -9 -9 -8 ------------- Run | Yrd Mat Mat Sto Mat Turns Passed 1712 | 170 189 325 847 181 Spaces Moved 1059 | 87 132 197 550 93 Core 10 | 10 . . . . Treads . | . . . . . Legs 1049 | 77 132 197 550 93 Wheels . | . . . . . Hover . | . . . . . Flight . | . . . . . Fastest Speed 50 | 50 120 120 120 120 Average Speed 119 | 115 120 120 120 120 Slowest Speed 120 | 120 120 120 120 120 Overloaded Moves . | . . . . . Propulsion Burnouts . | . . . . . Robots Hopped . | . . . . . Cave-ins Triggered . | . . . . . Exploration Rate (%) 32 | 6 28 29 89 10 Regions Visited 4 Branch Regions 1 Pre-discovered Areas . | . . . . . Known Exits Taken 1 | . . 1 . . Unknown Exits Taken 3 | 1 1 . 1 . Scrap Searched . | . . . . . Spaces Dug 6 | . . . . 6 Terrain Destroyed 7 | . . . 1 6 Melee . | . . . . . Projectile 7 | . . . 1 6 AOE . | . . . . . Terrain Rammed . | . . . . . Walls Destroyed . | . . . . . Machines Disabled . | . . . . . Actions | -11 -10 -9 -9 -8 --------- Run | Yrd Mat Mat Sto Mat Total 1322 | 118 154 255 674 121 Wait 97 | . 4 32 61 . Move 1055 | 86 131 196 549 93 Hop . | . . . . . Pick Up 23 | 3 8 3 6 3 Fast Attach 11 | 7 . . 3 1 Attach 5 | . . 2 1 2 Detach . | . . . . . Swap 17 | . 1 4 11 1 Drop 21 | . 4 3 11 3 Fire 93 | 22 6 15 32 18 Melee . | . . . . . Ram . | . . . . . Kick . | . . . . . Crush . | . . . . . Escape Stasis . | . . . . . Rewire . | . . . . . Trap . | . . . . . Miscellaneous . | . . . . . Route ------- -11/Scrapyard -10/Materials -9/Materials (discovered 4 exits: *Min x2 / *Sto x2) -9/Storage -8/Materials History --------- Turn | Location | Event 10 | -11/Scrapyard | Discovered new exit (range 16) 171 | -11/Scrapyard | Entered Materials 290 | -10/Materials | Discovered new exit (range 13) 305 | -10/Materials | Build established: Mutant 360 | -10/Materials | Entered another Materials area 360 | -9/Materials | Evolved 2 slots: Propulsion x1, Utility x1 362 | -9/Materials | Discovered new exit (range 15) 663 | -9/Materials | Identified exit to Mines 663 | -9/Materials | Identified exit to Storage 685 | -9/Materials | Entered Storage 685 | -9/Storage | Accompanied by 1 ally 754 | -9/Storage | Garrison activated, responded to threat 919 | -9/Storage | Garrison activated, responded to threat 1028 | -9/Storage | Repaired Imp. Terrain Scanner 1082 | -9/Storage | Assisted by bots powering up and referring to "LRC-V3" 1344 | -9/Storage | Lost 3 allies 1378 | -9/Storage | Build established: Commander-Mutant 1500 | -9/Storage | Discovered new exit (range 16) 1504 | -9/Storage | Met a pair of Derelict thieves 1532 | -9/Storage | Entered Materials 1532 | -8/Materials | Accompanied by 9 allies 1532 | -8/Materials | Evolved 2 slots: Propulsion x1, Weapon x1 1656 | -8/Materials | Lost 6 allies 1713 | -8/Materials | Self-destructed Last Messages --------------- 01704_ 7M-TH3(g) destroyed. 01705_ W-25 Informer sends out distress signal. 01706_ W-25 Informer destroyed. 01707_ Acquired 16 matter. 01708_ Power failure, Nuclear Core shutdown. 01708_ Overheating: Imp. Aluminum Leg damaged (-33). 01708_ Overheating: Imp. Terrain Scan Processor damaged (-12). 01708_ Overheating: Spread Laser damaged (-21). 01708_ Overheating: Imp. Aluminum Leg damaged (-27). 01710_ Trooper 2a destroyed. 01711_ Overheating: Matter decay (-59). 01711_ U0-OWE(g) destroyed. 01711_ Penetrated by Slug. 01711_ Spread Laser destroyed. 01711_ Critical hit (Blast). 01712_ Overheating: Energy bleed (-40). 01713_ Overheating: Energy bleed (-25). Map ----- +----------------------------------------------------+ | ????????????????????????????????????????? | | ????????????????????????????????????????? | | ????????????????????????????????????????? | | ????????????????????????????????????????? | | ????????????????????????????????????????? | | ????????????????????????????????????????? | | ????????????????????????????????????????? | | ????????????????????????????????????????? | | ????????????????????????????????????????? | | ???????????????? ???????????????????????? | | ?????????????? ??? ???#???????????????? | | ?????????#???? ?? ? ??????????????????? | | ????????#???? ?#????#??##?#????????????? | | ???????# ? ??###??#? ?? ?????????????? | | ????????????????? #?#?#?? ? ??????????? | | ???????? ?? ?? ? ?#?## ? ??????????????? | | ?????##?#?##?+###+#?##? ? ??????????? | | ???#???### ?? ##### """ ??????????? | | ?????????# % = g#???# ""??"???????????? | | ????#????#! %=%!%##### ?""?" ?# ???????? | | ??????#### ""[!#?#?# ?""""? ?????????? | | ??????#?## %"""H###??? "?? ? #?#/?##??? | | ??#?????## S"=#?######??###???? ??#?? | | ?????#?### ["""%#########??????"""????? | | ??#?###?## *%""" ###????#?#?##? ?""????? | | ????####?# *= %@=##?#??##??#?## "?? ???# | | ??#????#?########;#########????# ""?????? | | ???##?####### *!% ####??? ?"???##? | | ???#? ? ? ? # *! """ #??#### ??### | | ?????? ?? # """ ####?#? ???????? | | ???# ?? ? # ! """ # ###? ?"? ?# ? | | ???# ?? # # #??#??G" ?#?? | | ????? ? ? ##+####+###### ##?##??"" ##? | | ???? ? ?? " # *= ############ ?#?? | | ???#? ? ? #=% [=!=#####?#####?#+#??##?? | | ???? ???? +=![*=%!############# ###?##? | | ???? ??? #!%=%!==% ##### ####? | | ?????#?##?#?# [####=! #!! # ? ? | | ?????####### ?##!% #!! # ??? | | ??????? ?? ??## = # % # ? ? | | ??????? ? ###+##/## # # #???? | | ?????? #####?? # # #=[ ## ###### | | ???????##?#??#?## """ !# # ## ## """ | | ???????# ? ?? ? # """ # # ## ## """ | | ???????? ?? ?# """ # ##/### ## """ | | ?????? ?? "??? ?# """ # ## | | ????????????????# / + | | ?????????????? ?# """ # ## ! | | ????????????????# """ #########+####### | | ???????? ??"????# """ #??#?# #?? | +----------------------------------------------------+ Best States ------------- Heat Dissipation 41 Energy Generation 14 Energy Capacity 280 Matter Stores 300 Matter Capacity 300 Sight Range 16 Terrain Scan Range 16 Terrain Scan Density 110 Armor Coverage 225 Evasion (%) 55 Item Schematics ----------------- None Robot Schematics ------------------ None Fabricated ------------ Nothing Alien Tech Used ----------------- None Achievements -------------- None Challenges ------------ None Game ------ Seed MagneticImpactPropulsion Manual? 0 Play Time 00:21:14 Cumulative 71.0 hours Start 2025.03.14 @ 20:04:11 End 2025.03.14 @ 20:23:27 Sessions 1 Manual Loads 0 Difficulty Rogue Special Mode None Game No. 104 Rogue 104 Adventurer 0 Explorer 0 Win Type - Total 1 Types 1/0/0/0/0/0/0/0/0 Lore% 30 Gallery% 45 Achievement% 39 Wizard Run 0 Options --------- Layout 1 ASCII 1 Keyboard 0 Movement Numpad Keybinds 0 Fullscreen 1 Font 24/Smallcaps Map View 50x35 Zoom Use 0% Tactical HUD 1 Map Filters NONE Filters NONE Steam 1 RUN: 13ce80f3-c092-4bbc-aace-89712d87f53c